lending/lending_fUSD_20250819
["ID","MTS","AMOUNT","RATE_DAILY","PERIOD"]
[380173287,1755593349042,-1655.32,0.00030136,120]
[380173288,1755593349079,-400.0,0.00030136,120]
[380173289,1755593349117,-2466.43,0.00030136,120]
[380173290,1755593349157,-1627.51,0.00030136,120]
[380173291,1755593349196,-400.0,0.00030136,120]
[380173292,1755593349238,-400.0,0.00030136,120]
[380173293,1755593349283,-400.0,0.00030136,120]
[380173294,1755593349331,-2389.98,0.00030136,120]
[380173295,1755593349375,-3063.75,0.00030136,120]
[380173296,1755593349417,-400.0,0.00030136,120]
[380173297,1755593349458,-2677.41,0.00030136,120]
[380173298,1755593349498,-1540.67,0.00030136,120]
[380173299,1755593349543,-1574.92,0.00030136,60]
[380173300,1755593349586,-3043.59,0.00030136,120]
[380173301,1755593349625,-400.0,0.00030136,120]
[380173302,1755593349661,-5021.09,0.00030136,120]
[380173303,1755593349699,-547.49,0.00030136,120]
[380173304,1755593349735,-400.0,0.00030136,120]
[380173305,1755593349770,-3746.43,0.00030136,120]
[380173306,1755593349805,-473.25,0.00030136,120]
[380173307,1755593349841,-400.0,0.00030136,120]
[380173308,1755593349877,-300.0,0.00030136,60]
[380173309,1755593349912,-2322.04,0.00030136,120]
[380173310,1755593349950,-363.7737044,0.00030136,120]
[380173311,1755593349986,-461.81,0.00030136,120]
[380173312,1755593350019,-1156.97,0.00030136,120]
[380173313,1755593350055,-1430.5,0.00030136,120]
[380173314,1755593350090,-805.11,0.00030136,120]
[380173315,1755593350128,-1429.99,0.00030136,120]
[380173316,1755593350168,-400.0,0.00030136,120]
[380173317,1755593350208,-2531.85,0.00030136,120]
[380173318,1755593350247,-1260.92,0.00030136,120]
[380173319,1755593350284,-777.58,0.00030136,120]
[380173320,1755593350322,-500.0,0.00030136,60]
[380173321,1755593350358,-2333.01,0.00030136,120]
[380173322,1755593350395,-400.0,0.00030136,120]
[380173323,1755593350431,-400.0,0.00030136,120]
[380173324,1755593350466,-400.0,0.00030136,120]
[380173325,1755593350502,-3231.76,0.00030136,120]
[380173326,1755593350540,-615.56,0.00030136,120]
[380173327,1755593350576,-730.0,0.00030136,60]
[380173328,1755593350612,-943.17,0.00030136,120]
[380173329,1755593350646,-400.0,0.00030136,120]
[380173330,1755593350681,-3073.58,0.00030136,120]
[380173331,1755593350718,-4131.78,0.00030136,120]
[380173332,1755593350755,-3007.43,0.00030136,120]
[380173333,1755593350791,-3581.16,0.00030136,120]
[380173334,1755593350828,-15332.53,0.00030136,120]
[380173335,1755593350867,-400.0,0.00030136,120]
[380173336,1755593350907,-5350.74,0.00030136,120]
[380173337,1755593350947,-400.0,0.00030136,120]
[380173338,1755593350991,-400.0,0.00030136,120]
[380173339,1755593351029,-400.0,0.00030136,120]
[380173340,1755593351066,-1007.11,0.00030136,120]
[380173341,1755593351105,-2017.34,0.00030136,120]
[380173342,1755593351152,-460.4,0.00030136,120]
[380173343,1755593351199,-4579.023105,0.00030136,120]
[380173344,1755593351242,-402.10735834,0.00030136,120]
[380173345,1755593351283,-400.0,0.00030136,120]
[380173346,1755593351324,-400.0,0.00030136,120]
[380173347,1755593351363,-400.0,0.00030136,120]
[380173348,1755593351402,-3832.31,0.00030136,120]
[380173349,1755593351438,-944.29,0.00030136,120]
[380173350,1755593351475,-400.0,0.00030136,120]
[380173351,1755593351514,-2131.45,0.00030136,120]
[380173352,1755593351551,-1072.97,0.00030136,120]
[380173353,1755593351590,-400.0,0.00030136,120]
[380173354,1755593351628,-500.0,0.00030136,60]
[380173355,1755593351666,-2189.14,0.00030136,120]
[380173356,1755593351705,-1465.99,0.00030136,120]
[380173357,1755593351746,-8196.83,0.00030136,120]
[380173358,1755593351788,-400.0,0.00030136,120]
[380173359,1755593351828,-400.0,0.00030136,120]
[380173360,1755593351869,-435.14,0.00030136,120]
[380173361,1755593351917,-400.0,0.00030136,120]
[380173362,1755593351965,-420.69,0.00030136,120]
[380173363,1755593352019,-1953.65,0.00030136,120]
[380173364,1755593352062,-679.22,0.00030136,120]
[380173365,1755593352103,-1595.44,0.00030136,120]
[380173366,1755593352145,-400.0,0.00030136,120]
[380173367,1755593352189,-817.01,0.00030136,120]
[380173368,1755593352231,-627.73,0.00030136,120]
[380173369,1755593352271,-400.0,0.00030136,120]
[380173370,1755593352310,-400.0,0.00030136,120]
[380173371,1755593352349,-2516.01,0.00030136,120]
[380173372,1755593352388,-440.75,0.00030136,120]
[380173373,1755593352427,-1458.05,0.00030136,120]
[380173374,1755593352479,-1139.75,0.00030136,120]
[380173375,1755593352533,-761.0,0.00030136,120]
[380173376,1755593352587,-670.69,0.00030136,120]
[380173377,1755593352643,-2865.25,0.00030136,120]
[380173378,1755593352701,-400.0,0.00030136,120]
[380173379,1755593352756,-1981.46,0.00030136,120]
[380173380,1755593352812,-400.0,0.00030136,120]
[380173381,1755593352862,-3743.57,0.00030136,120]
[380173382,1755593352914,-1042.68,0.00030136,120]
[380173383,1755593352964,-400.0,0.00030136,120]
[380173384,1755593353011,-400.0,0.00030136,120]
[380173385,1755593353061,-566.52,0.00030136,30]
[380173386,1755593353113,-568.07,0.00030136,120]
[380173387,1755593353165,-400.0,0.00030136,120]
[380173388,1755593353217,-877.49,0.00030136,120]
[380173389,1755593353271,-400.0,0.00030136,120]
[380173390,1755593353322,-2221.77,0.00030136,120]
[380173391,1755593353382,-1997.88,0.00030136,120]
[380173392,1755593353437,-400.0,0.00030136,120]
[380173393,1755593353494,-400.0,0.00030136,120]
[380173394,1755593353547,-400.0,0.00030136,120]
[380173395,1755593353598,-2414.34,0.00030136,120]
[380173396,1755593353651,-400.0,0.00030136,120]
[380173397,1755593353706,-400.0,0.00030136,120]
[380173398,1755593353764,-5640.54,0.00030136,120]
[380173399,1755593353832,-400.0,0.00030136,120]
[380173400,1755593353882,-400.0,0.00030136,120]
[380173401,1755593353930,-562.73,0.00030136,120]
[380173402,1755593353978,-1225.89,0.00030136,120]
[380173403,1755593354027,-856.67,0.00030136,120]
[380173404,1755593354075,-11557.12,0.00030136,120]
[380173405,1755593354122,-1078.82,0.00030136,120]
[380173406,1755593354174,-500.0,0.00030136,120]
[380173407,1755593354226,-5316.18,0.00030136,120]
[380173408,1755593354280,-2820.53,0.00030136,120]
[380173409,1755593354333,-847.68,0.00030136,120]
[380173410,1755593354386,-400.0,0.00030136,120]
[380173411,1755593354437,-3530.43,0.00030136,120]
[380173412,1755593354489,-1395.3,0.00030136,120]
[380173413,1755593354539,-400.0,0.00030136,120]
[380173414,1755593354588,-2083.93,0.00030136,120]
[380173415,1755593354637,-5681.31,0.00030136,120]
[380173416,1755593354686,-4283.2,0.00030136,120]
[380173417,1755593354733,-400.0,0.00030136,120]
[380173418,1755593354781,-2210.18,0.00030136,120]
[380173419,1755593354831,-810.95,0.00030136,120]
[380173420,1755593354880,-400.0,0.00030136,120]
[380173421,1755593354931,-400.0,0.00030136,120]
[380173422,1755593354979,-250.0,0.00030136,120]
[380173423,1755593355028,-2248.74,0.00030136,120]
[380173424,1755593355079,-3133.24,0.00030136,120]
[380173425,1755593355133,-573.05,0.00030136,120]
[380173426,1755593355183,-1700.9,0.00030136,120]
[380173427,1755593355233,-559.74,0.00030136,120]
[380173428,1755593355284,-400.0,0.00030136,120]
[380173429,1755593355335,-3421.74,0.00030136,120]
[380173430,1755593355386,-400.0,0.00030136,120]
[380173431,1755593355436,-426.8141912,0.00030136,120]
[380173432,1755593355484,-400.0,0.00030136,120]
[380173433,1755593355534,-400.0,0.00030136,120]
[380173434,1755593355582,-1455.74,0.00030136,120]
[380173435,1755593355630,-400.0,0.00030136,120]
[380173436,1755593355676,-400.0,0.00030136,120]
[380173437,1755593355722,-2341.93,0.00030136,120]
[380173438,1755593355769,-400.0,0.00030136,120]
[380173439,1755593355817,-763.36,0.00030136,120]
[380173440,1755593355864,-400.0,0.00030136,120]
[380173441,1755593355913,-2980.98,0.00030136,120]
[380173442,1755593355961,-400.0,0.00030136,120]
[380173443,1755593356009,-400.0,0.00030136,120]
[380173444,1755593356060,-7324.38,0.00030136,120]
[380173445,1755593356109,-5304.46,0.00030136,120]
[380173446,1755593356159,-439.83,0.00030136,120]
[380173447,1755593356211,-400.0,0.00030136,120]
[380173448,1755593356258,-400.0,0.00030136,120]
[380173449,1755593356307,-400.0,0.00030136,120]
[380173450,1755593356353,-150.24234856,0.00030136,120]
[380173451,1755593356400,-400.0,0.00030136,120]
[380173452,1755593356445,-9580.74,0.00030136,120]
[380173453,1755593356492,-5444.4,0.00030136,120]
[380173454,1755593356540,-2681.19,0.00030136,120]
[380173455,1755593357609,-838.63,0.00030136,120]
[380173456,1755593357663,-709.22,0.00030136,120]
[380173457,1755593357701,-2063.06,0.00030136,120]
[380173458,1755593357738,-400.0,0.00030136,120]
[380173459,1755593357773,-1086.38,0.00030136,120]
[380173460,1755593357809,-400.0,0.00030136,120]
[380173461,1755593357842,-400.0,0.00030136,120]
[380173462,1755593357878,-510.68,0.00030136,120]
[380173463,1755593357913,-400.0,0.00030136,120]
[380173464,1755593357950,-400.0,0.00030136,120]
[380173465,1755593357988,-400.0,0.00030136,120]
[380173466,1755593358025,-2616.2,0.00030136,120]
[380173467,1755593358062,-400.0,0.00030136,120]
[380173468,1755593358101,-400.0,0.00030136,120]
[380173469,1755593358141,-2271.32,0.00030136,120]
[380173470,1755593358182,-400.0,0.00030136,120]
[380173471,1755593358225,-2413.32,0.00030136,120]
[380173472,1755593358270,-400.0,0.00030136,60]
[380173473,1755593358311,-840.83,0.00030136,120]
[380173474,1755593358352,-10175.82,0.00030136,120]
[380173475,1755593358393,-451.32,0.00030136,120]
[380173476,1755593358433,-2317.29,0.00030136,120]
[380173477,1755593358473,-400.0,0.00030136,120]
[380173478,1755593358512,-400.0,0.00030136,120]
[380173479,1755593358551,-3200.78,0.00030136,120]
[380173480,1755593358589,-795.2,0.00030136,120]
[380173481,1755593358625,-400.0,0.00030136,120]
[380173482,1755593358662,-1045.77,0.00030136,120]
[380173483,1755593358698,-400.0,0.00030136,120]
[380173484,1755593358734,-400.0,0.00030136,120]
[380173485,1755593358771,-1703.4,0.00030136,120]
[380173486,1755593358807,-2338.75,0.00030136,120]
[380173487,1755593358842,-400.0,0.00030136,120]
[380173488,1755593358882,-711.54,0.00030136,120]
[380173489,1755593358920,-8452.17,0.00030136,120]
[380173490,1755593358956,-3810.94,0.00030136,120]
[380173491,1755593358991,-3512.67,0.00030136,120]
[380173492,1755593359026,-400.76832893,0.00030136,120]
[380173493,1755593359065,-2653.05,0.00030136,120]
[380173494,1755593359102,-400.0,0.00030136,120]
[380173495,1755593359141,-546.79,0.00030136,120]
[380173496,1755593359183,-400.0,0.00030136,120]
[380173497,1755593359226,-1974.02,0.00030136,120]
[380173498,1755593359272,-1038.83,0.00030136,120]
[380173499,1755593359313,-3637.88,0.00030136,120]
[380173500,1755593359355,-400.0,0.00030136,120]
[380173501,1755593359396,-1069.73,0.00030136,120]
[380173502,1755593359434,-13677.67,0.00030136,120]
[380173503,1755593359472,-2091.02,0.00030136,120]
[380173504,1755593359513,-10092.14,0.00030136,120]
[380173505,1755593359555,-462.14,0.00030136,120]
[380173506,1755593359592,-400.0,0.00030136,120]
[380173507,1755593359628,-400.0,0.00030136,120]
[380173508,1755593359661,-1097.96,0.00030136,120]
[380173509,1755593359696,-5703.36,0.00030136,120]
[380173510,1755593359733,-2998.2,0.00030136,120]
[380173511,1755593359770,-485.7,0.00030136,120]
[380173512,1755593359804,-819.53,0.00030136,120]
[380173513,1755593359839,-1044.32,0.00030136,120]
[380173514,1755593359877,-3334.09,0.00030136,120]
[380173515,1755593359915,-837.86,0.00030136,120]
[380173516,1755593359954,-2461.21,0.00030136,120]
[380173517,1755593359991,-400.0,0.00030136,120]
[380173518,1755593360029,-892.22,0.00030136,120]
[380173519,1755593360068,-400.0,0.00030136,120]
[380173520,1755593360108,-400.0,0.00030136,120]
[380173521,1755593360153,-3746.35,0.00030136,120]
[380173522,1755593360208,-6048.99,0.00030136,120]
[380173523,1755593360251,-2852.14,0.00030136,120]
[380173524,1755593360290,-2185.1,0.00030136,120]
[380173525,1755593360332,-500.0,0.00030137,120]
[380173526,1755593360373,-212.0,0.00030301,39]
[380173527,1755593360413,-200.0,0.00030352,120]
[380173528,1755593360450,-367.5948641,0.00030352,120]
[380173529,1755593360487,-500.0,0.0003041,60]
[380173530,1755593360522,-500.0,0.0003041,60]
[380173531,1755593360558,-537.0,0.0003041,60]
[380173532,1755593360595,-500.0,0.0003041,60]
[380173533,1755593360632,-150.0,0.0003041,60]
[380173534,1755593360666,-500.0,0.0003041,60]
[380173535,1755593360702,-500.0,0.0003041,60]
[380173536,1755593360742,-1646.0,0.0003041,60]
[380173537,1755593360780,-554.0,0.0003041,60]
[380173538,1755593360818,-150.0,0.0003041,60]
[380173539,1755593360857,-500.0,0.0003041,60]
[380173540,1755593360896,-500.0,0.0003041,60]
[380173541,1755593360932,-150.0,0.0003041,60]
[380173542,1755593360966,-300.0,0.0003041,60]
[380173543,1755593361001,-500.0,0.0003041,60]
[380173544,1755593361037,-730.0,0.0003041,60]
[380173545,1755593361076,-500.0,0.0003041,60]
[380173546,1755593361117,-328.23395607,0.0003041,30]
[380173547,1755593361158,-2142.41,0.0003041,120]
[380173548,1755593361202,-400.0,0.0003041,120]
[380173549,1755593361254,-429.24,0.0003041,120]
[380173550,1755593361292,-400.0,0.0003041,120]
[380173551,1755593361332,-400.0,0.0003041,120]
[380173552,1755593361372,-400.0,0.0003041,120]
[380173553,1755593361410,-400.0,0.0003041,120]
[380173554,1755593361446,-400.0,0.0003041,120]
[380173555,1755593361481,-459.73507257,0.0003041,120]
[380173556,1755593361517,-400.0,0.0003041,120]
[380173557,1755593361553,-527.44515905,0.0003041,120]
[380173558,1755593361590,-400.0,0.0003041,120]
[380173559,1755593361628,-400.0,0.0003041,120]
[380173560,1755593361663,-395.36889787,0.0003041,120]
[380173561,1755593361698,-400.0,0.0003041,120]
[380173562,1755593361734,-400.0,0.0003041,120]
[380173563,1755593361775,-290.99690816,0.0003041,120]
[380173564,1755593362029,-400.0,0.0003041,120]
[380173565,1755593362093,-400.0,0.0003041,120]
[380173566,1755593362134,-400.0,0.0003041,120]
[380173567,1755593362174,-400.0,0.0003041,120]
[380173568,1755593362213,-400.0,0.0003041,120]
[380173569,1755593362252,-400.0,0.0003041,120]
[380173570,1755593362290,-400.0,0.0003041,120]
[380173571,1755593362330,-400.0,0.0003041,120]
[380173572,1755593362368,-400.0,0.0003041,120]
[380173573,1755593362405,-400.0,0.0003041,120]
[380173574,1755593362442,-400.0,0.0003041,120]
[380173575,1755593362478,-400.0,0.0003041,120]
[380173576,1755593362519,-400.0,0.0003041,120]
[380173577,1755593362556,-400.0,0.0003041,120]
[380173578,1755593362593,-400.0,0.0003041,120]
[380173579,1755593362631,-400.0,0.0003041,120]
[380173580,1755593362665,-400.0,0.0003041,120]
[380173581,1755593362701,-400.0,0.0003041,120]
[380173582,1755593362736,-400.0,0.0003041,120]
[380173583,1755593362773,-400.0,0.0003041,120]
[380173584,1755593362809,-400.0,0.0003041,120]
[380173585,1755593362844,-400.0,0.0003041,120]
[380173586,1755593362879,-400.0,0.0003041,120]
[380173587,1755593362913,-400.0,0.0003041,120]
[380173588,1755593362947,-400.0,0.0003041,120]
[380173589,1755593362983,-400.0,0.0003041,120]
[380173590,1755593363018,-400.0,0.0003041,120]
[380173591,1755593363053,-400.0,0.0003041,120]
[380173592,1755593363089,-400.0,0.0003041,120]
[380173593,1755593363124,-400.0,0.0003041,120]
[380173594,1755593363161,-400.0,0.0003041,120]
[380173595,1755593363197,-1559.24,0.0003041,120]
[380173596,1755593363234,-630.12,0.0003041,120]
[380173597,1755593363272,-400.0,0.0003041,120]
[380173598,1755593363309,-400.0,0.0003041,120]
[380173599,1755593363348,-400.0,0.0003041,120]
[380173600,1755593363386,-400.0,0.0003041,120]
[380173601,1755593363423,-400.0,0.0003041,120]
[380173602,1755593363461,-2429.31,0.0003041,120]
[380173603,1755593363497,-400.0,0.0003041,120]
[380173604,1755593363537,-400.0,0.0003041,120]
[380173605,1755593363576,-400.0,0.0003041,120]
[380173606,1755593363612,-603.25,0.0003041,120]
[380173607,1755593363648,-400.0,0.0003041,120]
[380173608,1755593363683,-400.0,0.0003041,120]
[380173609,1755593363721,-400.0,0.0003041,120]
[380173610,1755593363757,-2088.35,0.0003041,120]
[380173611,1755593363793,-546.14247185,0.0003041,120]
[380173612,1755593363831,-226.4448724,0.0003041,120]
[380173613,1755593363868,-1286.88,0.0003041,120]
[380173614,1755593363904,-409.3,0.0003041,120]
[380173615,1755593363938,-622.96,0.0003041,120]
[380173616,1755593363973,-400.0,0.0003041,120]
[380173617,1755593364011,-400.0,0.0003041,120]
[380173618,1755593364049,-1808.11,0.0003041,120]
[380173619,1755593364088,-400.0,0.0003041,120]
[380173620,1755593364131,-400.0,0.0003041,120]
[380173621,1755593364174,-400.0,0.0003041,120]
[380173622,1755593364216,-400.0,0.0003041,120]
[380173623,1755593364258,-1057.26,0.0003041,120]
[380173624,1755593364300,-989.65,0.0003041,120]
[380173625,1755593364344,-400.0,0.0003041,120]
[380173626,1755593364386,-400.0,0.0003041,120]
[380173627,1755593364428,-400.0,0.0003041,120]
[380173628,1755593364469,-487.26,0.0003041,120]
[380173629,1755593364513,-434.18,0.0003041,120]
[380173630,1755593364554,-449.3,0.0003041,120]
[380173631,1755593364596,-963.75,0.0003041,120]
[380173632,1755593364635,-400.0,0.0003041,120]
[380173633,1755593364675,-400.0,0.0003041,120]
[380173634,1755593364714,-1038.16,0.0003041,120]
[380173635,1755593364755,-400.0,0.0003041,120]
[380173636,1755593364794,-400.0,0.0003041,120]
[380173637,1755593364835,-400.0,0.0003041,120]
[380173638,1755593364877,-1772.41,0.0003041,120]
[380173639,1755593364921,-400.0,0.0003041,120]
[380173640,1755593364964,-400.0,0.0003041,120]
[380173641,1755593365006,-2038.79,0.0003041,120]
[380173642,1755593365048,-400.0,0.0003041,120]
[380173643,1755593365088,-782.53,0.0003041,120]
[380173644,1755593365126,-400.0,0.0003041,120]
[380173645,1755593365167,-2665.9,0.0003041,120]
[380173646,1755593365208,-734.21,0.0003041,120]
[380173647,1755593365251,-400.0,0.0003041,120]
[380173648,1755593365290,-400.0,0.0003041,120]
[380173649,1755593365330,-400.0,0.0003041,120]
[380173650,1755593365370,-400.0,0.0003041,120]
[380173651,1755593365408,-400.0,0.0003041,120]
[380173652,1755593365447,-1954.46,0.0003041,120]
[380173653,1755593365486,-400.0,0.0003041,120]
[380173654,1755593365527,-465.8,0.0003041,120]
[380173655,1755593365565,-1324.75,0.0003041,120]
[380173656,1755593365603,-400.0,0.0003041,120]
[380173657,1755593365642,-2085.08,0.0003041,120]
[380173658,1755593365680,-400.0,0.0003041,120]
[380173659,1755593365722,-1230.05,0.0003041,120]
[380173660,1755593365761,-400.0,0.0003041,120]
[380173661,1755593365801,-872.28,0.0003041,120]
[380173662,1755593365840,-1949.52,0.0003041,120]
[380173663,1755593365880,-1782.95,0.0003041,120]
[380173664,1755593365920,-2474.7,0.0003041,120]
[380173665,1755593365967,-495.69,0.0003041,120]
[380173666,1755593366015,-2175.09,0.0003041,120]
[380173667,1755593366065,-400.0,0.0003041,120]
[380173668,1755593366115,-2070.68,0.0003041,120]
[380173669,1755593366158,-730.48,0.0003041,120]
[380173670,1755593366200,-400.0,0.0003041,120]
[380173671,1755593366243,-546.93,0.0003041,120]
[380173672,1755593366289,-400.0,0.0003041,120]
[380173673,1755593366333,-400.0,0.0003041,120]
[380173674,1755593366375,-450.34,0.0003041,120]
[380173675,1755593366426,-2214.34,0.0003041,120]
[380173676,1755593366471,-1800.95,0.0003041,120]
[380173677,1755593366513,-521.24,0.0003041,120]
[380173678,1755593366552,-400.0,0.0003041,120]
[380173679,1755593366592,-1028.34,0.0003041,120]
[380173680,1755593366632,-891.15,0.0003041,120]
[380173681,1755593367035,-1529.27,0.0003041,120]
[380173682,1755593367077,-400.0,0.0003041,120]
[380173683,1755593367119,-1028.71,0.0003041,120]
[380173684,1755593367161,-400.0,0.0003041,120]
[380173685,1755593367202,-905.89,0.0003041,120]
[380173686,1755593367243,-400.0,0.0003041,120]
[380173687,1755593367285,-400.0,0.0003041,120]
[380173688,1755593367327,-1033.64,0.0003041,120]
[380173689,1755593367368,-885.31,0.0003041,120]
[380173690,1755593367408,-1683.11,0.0003041,120]
[380173691,1755593367449,-400.0,0.0003041,120]
[380173692,1755593367490,-400.0,0.0003041,120]
[380173693,1755593367530,-400.0,0.0003041,120]
[380173694,1755593367574,-400.0,0.0003041,120]
[380173695,1755593367613,-2186.53,0.0003041,120]
[380173696,1755593367650,-423.6,0.0003041,120]
[380173697,1755593367687,-587.66,0.0003041,120]
[380173698,1755593367726,-1289.7,0.0003041,120]
[380173699,1755593367764,-400.0,0.0003041,120]
[380173700,1755593367803,-732.91,0.0003041,120]
[380173701,1755593367842,-400.0,0.0003041,120]
[380173702,1755593367881,-400.0,0.0003041,120]
[380173703,1755593367923,-400.0,0.0003041,120]
[380173704,1755593367961,-400.0,0.0003041,120]
[380173705,1755593367998,-400.0,0.0003041,120]
[380173706,1755593368036,-400.0,0.0003041,120]
[380173707,1755593368073,-400.0,0.0003041,120]
[380173708,1755593368112,-1132.67,0.0003041,120]
[380173709,1755593368152,-400.0,0.0003041,120]
[380173710,1755593368190,-428.71,0.0003041,120]
[380173711,1755593368228,-1953.16,0.0003041,120]
[380173712,1755593368268,-400.0,0.0003041,120]
[380173713,1755593368306,-504.88,0.0003041,120]
[380173714,1755593368351,-922.73,0.0003041,120]
[380173715,1755593368391,-2539.7,0.0003041,120]
[380173716,1755593368431,-400.0,0.0003041,120]
[380173717,1755593368471,-263.45151863,0.0003041,120]
[380173718,1755593368509,-400.0,0.0003041,120]
[380173719,1755593368551,-489.7665976,0.0003041,120]
[380173720,1755593368596,-400.0,0.0003041,120]
[380173721,1755593368636,-1684.12,0.0003041,120]
[380173722,1755593368674,-400.0,0.0003041,120]
[380173723,1755593368713,-1213.7,0.0003041,120]
[380173724,1755593368752,-400.0,0.0003041,120]
[380173725,1755593368790,-400.0,0.0003041,120]
[380173726,1755593368827,-400.0,0.0003041,120]
[380173727,1755593368864,-676.18,0.0003041,120]
[380173728,1755593368901,-412.24,0.0003041,120]
[380173729,1755593368937,-400.0,0.0003041,120]
[380173730,1755593368974,-556.33,0.0003041,120]
[380173731,1755593369009,-400.0,0.0003041,120]
[380173732,1755593369046,-400.0,0.0003041,120]
[380173733,1755593369086,-400.0,0.0003041,120]
[380173734,1755593369127,-963.86,0.0003041,120]
[380173735,1755593369167,-1695.92,0.0003041,120]
[380173736,1755593369206,-400.0,0.0003041,120]
[380173737,1755593369247,-1047.58,0.0003041,120]
[380173738,1755593369286,-400.0,0.0003041,120]
[380173739,1755593369326,-817.17,0.0003041,120]
[380173740,1755593369366,-400.0,0.0003041,120]
[380173741,1755593369405,-400.0,0.0003041,120]
[380173742,1755593369444,-400.0,0.0003041,120]
[380173743,1755593369482,-850.0,0.0003041,120]
[380173744,1755593369521,-400.0,0.0003041,120]
[380173745,1755593369560,-400.0,0.0003041,120]
[380173746,1755593369598,-400.0,0.0003041,120]
[380173747,1755593369638,-400.0,0.0003041,120]
[380173748,1755593369675,-400.0,0.0003041,120]
[380173749,1755593369715,-1839.73,0.0003041,120]
[380173750,1755593369753,-400.0,0.0003041,120]
[380173751,1755593369789,-400.0,0.0003041,120]
[380173752,1755593369826,-400.0,0.0003041,120]
[380173753,1755593369863,-400.0,0.0003041,120]
[380173754,1755593369902,-400.0,0.0003041,120]
[380173755,1755593369942,-400.0,0.0003041,120]
[380173756,1755593369980,-2012.25,0.0003041,120]
[380173757,1755593370018,-400.0,0.0003041,120]
[380173758,1755593370062,-400.0,0.0003041,120]
[380173759,1755593370110,-518.87,0.0003041,120]
[380173760,1755593370150,-400.0,0.0003041,120]
[380173761,1755593370190,-1581.54,0.0003041,120]
[380173762,1755593370230,-464.84,0.0003041,120]
[380173763,1755593370272,-400.0,0.0003041,120]
[380173764,1755593370313,-564.03,0.0003041,120]
[380173765,1755593370355,-426.1,0.0003041,120]
[380173766,1755593370397,-400.0,0.0003041,120]
[380173767,1755593370437,-400.0,0.0003041,120]
[380173768,1755593370477,-400.0,0.0003041,120]
[380173769,1755593370524,-400.0,0.0003041,120]
[380173770,1755593370566,-400.0,0.0003041,120]
[380173771,1755593370606,-400.0,0.0003041,120]
[380173772,1755593370644,-400.0,0.0003041,120]
[380173773,1755593370682,-400.0,0.0003041,120]
[380173774,1755593370720,-1199.49,0.0003041,120]
[380173775,1755593370758,-400.0,0.0003041,120]
[380173776,1755593370794,-1786.48,0.0003041,120]
[380173777,1755593370834,-400.0,0.0003041,120]
[380173778,1755593370880,-443.74,0.0003041,120]
[380173779,1755593370921,-738.8,0.0003041,120]
[380173780,1755593370960,-400.0,0.0003041,120]
[380173781,1755593371000,-400.0,0.0003041,120]
[380173782,1755593371039,-400.0,0.0003041,120]
[380173783,1755593371077,-537.32,0.0003041,120]
[380173784,1755593371114,-1070.65,0.0003041,120]
[380173785,1755593371152,-400.0,0.0003041,120]
[380173786,1755593371190,-400.0,0.0003041,120]